fUST/lending_fUST_20240725
["ID","MTS","AMOUNT","RATE_DAILY","PERIOD"]
[333104649,1721869843244,-500.0,0.00013698,2]
[333104651,1721869843254,-500.0,0.00013698,2]
[333104653,1721869843264,-500.0,0.00013698,2]
[333104655,1721869843274,-500.0,0.00013698,2]
[333104657,1721869843284,-500.0,0.00013698,2]
[333104659,1721869843294,-500.0,0.00013698,2]
[333104661,1721869843303,-500.0,0.00013698,2]
[333104663,1721869843316,-500.0,0.00013698,2]
[333104665,1721869843325,-500.0,0.00013698,2]
[333104667,1721869843335,-500.0,0.00013698,2]
[333104668,1721869843345,-500.0,0.00013698,2]
[333104671,1721869843355,-500.0,0.00013698,2]
[333104673,1721869843364,-500.0,0.00013698,2]
[333104674,1721869843374,-500.0,0.00013698,2]
[333104676,1721869843383,-500.0,0.00013698,2]
[333104678,1721869843393,-500.0,0.00013698,2]
[333104680,1721869843403,-500.0,0.00013698,2]
[333104682,1721869843413,-500.0,0.00013698,2]
[333104684,1721869843423,-500.0,0.00013698,2]
[333104686,1721869843432,-500.0,0.00013698,2]
[333104688,1721869843442,-500.0,0.00013698,2]
[333104690,1721869843451,-500.0,0.00013698,2]
[333104692,1721869843461,-356.97733359,0.00013698,2]
[333104694,1721869843471,-3000.0,0.00013699,2]
[333104696,1721869843481,-5464.4026296,0.00013699,2]
[333104698,1721869843491,-1581.923095,0.00013699,2]
[333104700,1721869843501,-150.112233,0.000137,2]
[333104703,1721869843511,-150.112233,0.000137,2]
[333104705,1721869843521,-150.112233,0.000137,2]
[333104707,1721869843531,-342.86256668,0.00013754,2]
[333104709,1721869843540,-9865.32124317,0.0001379,2]
[333104711,1721869843552,-150.112233,0.000138,2]
[333104713,1721869843563,-150.112233,0.000138,2]
[333104715,1721869843573,-150.0,0.00013819,2]
[333104717,1721869843583,-1863.95047072,0.00013862,2]
[333104719,1721869843593,-5074.620934,0.00013865,2]
[333104721,1721869843602,-150.112233,0.000139,2]
[333104723,1721869843612,-150.112233,0.000139,2]
[333104725,1721869843623,-150.112233,0.000139,2]
[333104726,1721869843632,-150.112233,0.000139,2]
[333104728,1721869843642,-151.0,0.00013951,2]
[333104730,1721869843651,-240.507175,0.00013957,2]
[333104732,1721869843661,-9865.32124317,0.00013962,2]
[333104734,1721869843670,-151.0,0.00013962,2]
[333104736,1721869843679,-151.0,0.00013962,2]
[333104738,1721869843689,-151.0,0.00013962,2]
[333104740,1721869843698,-1472.492262,0.00013962,2]
[333104742,1721869843707,-1472.492262,0.00013962,2]
[333104744,1721869843716,-151.0,0.00013962,2]
[333104745,1721869843726,-536.205814,0.00013962,2]
[333104746,1721869843735,-536.205814,0.00013962,2]
[333104747,1721869843744,-151.0,0.00013962,2]
[333104748,1721869843756,-505.430489,0.00013962,2]
[333104749,1721869843766,-505.430489,0.00013962,2]
[333104750,1721869843775,-1217.207332,0.00013962,2]
[333104753,1721869843786,-1217.207332,0.00013962,2]
[333104756,1721869843798,-151.0,0.00013962,2]
[333104759,1721869843812,-151.0,0.00013962,2]
[333104762,1721869843823,-151.0,0.00013962,2]
[333104765,1721869843832,-49326.6062158,0.00013962,2]
[333104768,1721869843843,-2770.6,0.0001397,2]
[333104771,1721869843852,-2770.6,0.00013971,2]
[333104773,1721869843861,-2770.6,0.00013971,2]
[333104775,1721869843873,-2770.6,0.00013971,2]
[333104777,1721869843883,-2770.6,0.00013971,2]
[333104779,1721869843893,-2770.6,0.00013971,2]
[333104781,1721869843903,-2770.6,0.00013971,2]
[333104782,1721869843913,-2770.6,0.00013971,2]
[333104783,1721869843925,-2770.6,0.00013971,2]
[333104785,1721869843935,-2770.6,0.00013971,2]
[333104786,1721869843945,-2770.6,0.00013971,2]
[333104788,1721869843955,-2770.6,0.00013971,2]
[333104790,1721869843967,-2770.6,0.00013971,2]
[333104792,1721869843977,-2770.65,0.00013971,2]
[333104794,1721869843987,-77969.36013182,0.00013972,5]
[333104797,1721869844001,-12956.31097652,0.00013972,5]
[333104800,1721869844022,-154.69833824,0.00012,2]
[333104802,1721869844032,-32395.30166176,0.00013972,5]
[333104805,1721869844057,-5596.40822882,0.00013972,5]
[333104807,1721869844075,-12448.58332373,0.00013972,5]
[333104810,1721869844088,-22362.20462739,0.00013972,5]
[333104812,1721869844098,-151.0,0.00013972,2]
[333104814,1721869844109,-500.0,0.00013972,2]
[333104816,1721869844119,-500.0,0.00013972,2]
[333104818,1721869844129,-500.0,0.00013972,2]
[333104820,1721869844139,-500.0,0.00013972,2]
[333104822,1721869844150,-500.0,0.00013972,2]
[333104824,1721869844160,-500.0,0.00013972,2]
[333104826,1721869844170,-500.0,0.00013972,2]
[333104828,1721869844180,-500.0,0.00013972,2]
[333104829,1721869844190,-151.0,0.00013972,2]
[333104831,1721869844200,-151.0,0.00013972,2]
[333104833,1721869844210,-500.0,0.00013972,2]
[333104835,1721869844220,-500.0,0.00013972,2]
[333104837,1721869844230,-500.0,0.00013972,2]
[333104839,1721869844241,-500.0,0.00013972,2]
[333104841,1721869844254,-500.0,0.00013972,2]
[333104843,1721869844265,-500.0,0.00013972,2]
[333104845,1721869844275,-157.662597,0.00013972,2]
[333104847,1721869844285,-500.0,0.00013972,2]
[333104849,1721869844296,-500.0,0.00013972,2]
[333104851,1721869844307,-151.0,0.00013972,2]
[333104853,1721869844322,-500.0,0.00013972,2]
[333104855,1721869844332,-492.980999,0.00013972,2]
[333104857,1721869844343,-500.0,0.00013972,2]
[333104859,1721869844356,-151.0,0.00013972,2]
[333104861,1721869844365,-287.316152,0.00013972,2]
[333104863,1721869844376,-287.316152,0.00013972,2]
[333104865,1721869844386,-500.0,0.00013972,2]
[333104867,1721869844397,-287.316152,0.00013972,2]
[333104869,1721869844408,-287.316152,0.00013972,2]
[333104872,1721869844419,-500.0,0.00013972,2]
[333104874,1721869844429,-500.0,0.00013972,2]
[333104876,1721869844440,-500.0,0.00013972,2]
[333104878,1721869844450,-500.0,0.00013972,2]
[333104880,1721869844460,-1874.91278473,0.00013972,2]
[333104882,1721869844474,-327.37721527,0.00013972,2]
[333104884,1721869844485,-951.06,0.00013972,2]
[333104886,1721869844495,-500.0,0.00013972,2]
[333104888,1721869844505,-500.0,0.00013972,2]
[333104890,1721869844516,-500.0,0.00013972,2]
[333104892,1721869844525,-500.0,0.00013972,2]
[333104894,1721869844535,-500.0,0.00013972,2]
[333104896,1721869844544,-500.0,0.00013972,2]
[333104898,1721869844554,-151.0,0.00013972,2]
[333104900,1721869844569,-500.0,0.00013972,2]
[333104902,1721869844579,-151.0,0.00013972,2]
[333104904,1721869844589,-668.84,0.00013972,2]
[333104906,1721869844599,-694.92278473,0.00013972,2]
[333104909,1721869844621,-700.28774559,0.00013698,2]
[333104948,1721869844996,-200.0,0.00013425,2]
[333104950,1721869845006,-128.62534282,0.00013698,2]
[333104952,1721869845018,-699.19691159,0.00013698,2]
[333104954,1721869845027,-500.0,0.00013698,2]
[333104956,1721869845038,-958.30721527,0.00013972,2]
[333104958,1721869845047,-1901.83,0.00013972,2]
[333104960,1721869845056,-1028.92,0.00013972,2]
[333104963,1721869845072,-518.12237967,0.00013972,2]
[333104965,1721869845082,-151.0,0.00013972,2]
[333104967,1721869845094,-500.0,0.00013972,2]
[333104969,1721869845105,-500.0,0.00013972,2]
[333104971,1721869845116,-229.49223681,0.00013972,2]
[333104973,1721869845128,-500.0,0.00013972,2]
[333104975,1721869845137,-500.0,0.00013972,2]
[333104977,1721869845147,-151.0,0.00013972,2]
[333104979,1721869845157,-151.0,0.00013972,2]
[333104981,1721869845167,-500.0,0.00013972,2]
[333104984,1721869845176,-500.0,0.00013972,2]
[333104985,1721869845185,-533.17,0.00013972,2]
[333104988,1721869845195,-503.89243339,0.00013972,2]
[333104990,1721869845204,-500.0,0.00013972,2]
[333104992,1721869845214,-500.0,0.00013972,2]
[333104994,1721869845224,-500.0,0.00013972,2]
[333104996,1721869845234,-151.0,0.00013972,2]
[333104998,1721869845243,-1686.1,0.00013972,2]
[333105000,1721869845253,-880.07,0.00013972,2]
[333105002,1721869845262,-664.59,0.00013972,2]
[333105004,1721869845271,-500.0,0.00013972,2]
[333105006,1721869845280,-500.0,0.00013972,2]
[333105008,1721869845292,-462.719106,0.00013972,2]
[333105010,1721869845302,-462.719106,0.00013972,2]
[333105012,1721869845313,-347.4279441,0.00013972,2]
[333105014,1721869845324,-1160.68,0.00013972,2]
[333105016,1721869845335,-500.0,0.00013972,2]
[333105018,1721869845347,-462.719106,0.00013972,2]
[333105021,1721869845358,-462.719106,0.00013972,2]
[333105023,1721869845367,-505.33364383,0.00013972,2]
[333105025,1721869845378,-500.0,0.00013972,2]
[333105027,1721869845387,-1372.06,0.00013972,2]
[333105029,1721869845399,-1445.04,0.00013972,2]
[333105031,1721869845411,-500.0,0.00013972,2]
[333105034,1721869845429,-500.0,0.00013972,2]
[333105037,1721869845441,-226.705701,0.00013972,2]
[333105039,1721869845451,-226.705701,0.00013972,2]
[333105041,1721869845461,-226.705701,0.00013972,2]
[333105043,1721869845470,-226.705701,0.00013972,2]
[333105045,1721869845480,-647.17,0.00013972,2]
[333105047,1721869845490,-693.35,0.00013972,2]
[333105049,1721869845499,-500.0,0.00013972,2]
[333105051,1721869845509,-500.0,0.00013972,2]
[333105053,1721869845518,-592.10385775,0.00013972,2]
[333105055,1721869845528,-586.19,0.00013972,2]
[333105057,1721869845538,-500.0,0.00013972,2]
[333105059,1721869845547,-500.0,0.00013972,2]
[333105061,1721869845557,-500.0,0.00013972,2]
[333105063,1721869845572,-723.03,0.00013972,2]
[333105065,1721869845581,-500.0,0.00013972,2]
[333105067,1721869845591,-151.0,0.00013972,2]
[333105070,1721869845601,-152.125492,0.00013972,2]
[333105072,1721869845610,-1156.99,0.00013972,2]
[333105074,1721869845620,-500.0,0.00013972,2]
[333105076,1721869845629,-1629.3,0.00013972,2]
[333105078,1721869845639,-1252.06,0.00013972,2]
[333105080,1721869845648,-500.0,0.00013972,2]
[333105082,1721869845657,-751.07,0.00013972,2]
[333105084,1721869845668,-535.48,0.00013972,2]
[333105086,1721869845678,-516.65,0.00013972,2]
[333105088,1721869845688,-500.0,0.00013972,2]
[333105090,1721869845698,-500.0,0.00013972,2]
[333105112,1721869845881,-500.0,0.00013972,2]
[333105114,1721869845913,-1579.88,0.00013972,2]
[333105117,1721869845925,-500.0,0.00013972,2]
[333105119,1721869845936,-620.1,0.00013972,2]
[333105121,1721869845946,-1028.84,0.00013972,2]
[333105123,1721869845958,-500.0,0.00013972,2]
[333105126,1721869845967,-151.0,0.00013972,2]
[333105128,1721869845977,-151.0,0.00013972,2]
[333105131,1721869845986,-151.0,0.00013972,2]
[333105134,1721869845996,-1748.61,0.00013972,2]
[333105137,1721869846006,-1472.492262,0.00013972,2]
[333105139,1721869846017,-1472.492262,0.00013972,2]
[333105141,1721869846028,-500.0,0.00013972,2]
[333105143,1721869846037,-1472.492262,0.00013972,2]
[333105145,1721869846049,-1472.492262,0.00013972,2]
[333105147,1721869846062,-1855.76,0.00013972,2]
[333105149,1721869846072,-500.0,0.00013972,2]
[333105151,1721869846082,-500.0,0.00013972,2]
[333105153,1721869846092,-500.0,0.00013972,2]
[333105155,1721869846102,-1034.34,0.00013972,2]
[333105157,1721869846112,-500.0,0.00013972,2]
[333105159,1721869846121,-987.79,0.00013972,2]
[333105160,1721869846131,-500.0,0.00013972,2]
[333105162,1721869846141,-500.0,0.00013972,2]
[333105164,1721869846151,-151.0,0.00013972,2]
[333105166,1721869846160,-151.0,0.00013972,2]
[333105168,1721869846170,-500.0,0.00013972,2]
[333105170,1721869846180,-5187.84,0.00013972,2]
[333105172,1721869846189,-1740.18,0.00013972,2]
[333105173,1721869846199,-2379.61,0.00013972,2]
[333105174,1721869846210,-935.88,0.00013972,2]
[333105175,1721869846219,-536.205814,0.00013972,2]
[333105177,1721869846229,-536.205814,0.00013972,2]
[333105179,1721869846239,-1909.42,0.00013972,2]
[333105181,1721869846248,-536.205814,0.00013972,2]
[333105183,1721869846257,-536.205814,0.00013972,2]
[333105185,1721869846267,-1871.48,0.00013972,2]
[333105187,1721869846276,-590.68,0.00013972,2]
[333105189,1721869846286,-500.0,0.00013972,2]
[333105191,1721869846296,-500.0,0.00013972,2]
[333105193,1721869846306,-1324.61,0.00013972,2]
[333105195,1721869846318,-772.69,0.00013972,2]
[333105197,1721869846328,-4691.2,0.00013972,2]
[333105199,1721869846338,-8866.82,0.00013972,2]
[333105201,1721869846348,-164.89421748,0.00013972,2]
[333105204,1721869846370,-335.10578252,0.00013972,2]
[333105206,1721869846380,-60.81421748,0.00013972,2]
[333105209,1721869846392,-439.18578252,0.00013972,2]
[333105211,1721869846402,-847.81,0.00013972,2]
[333105213,1721869846412,-1371.6,0.00013972,2]
[333105215,1721869846421,-672.61,0.00013972,2]
[333105217,1721869846432,-500.0,0.00013972,2]
[333105219,1721869846441,-8361.26,0.00013972,2]
[333105221,1721869846451,-500.0,0.00013972,2]
[333105223,1721869846461,-500.0,0.00013972,2]
[333105225,1721869846471,-1555.85,0.00013972,2]
[333105227,1721869846480,-500.0,0.00013972,2]
[333105229,1721869846489,-151.0,0.00013972,2]
[333105231,1721869846499,-1914.67,0.00013972,2]
[333105233,1721869846508,-1121.71,0.00013972,2]
[333105235,1721869846517,-151.0,0.00013972,2]
[333105236,1721869846527,-505.430489,0.00013972,2]
[333105239,1721869846538,-505.430489,0.00013972,2]
[333105241,1721869846548,-3761.89,0.00013972,2]
[333105243,1721869846558,-654.74,0.00013972,2]
[333105245,1721869846571,-500.0,0.00013972,2]
[333105247,1721869846582,-505.430489,0.00013972,2]
[333105250,1721869846599,-505.430489,0.00013972,2]
[333105252,1721869846609,-1217.207332,0.00013972,2]
[333105254,1721869846620,-1217.207332,0.00013972,2]
[333105256,1721869846630,-1217.207332,0.00013972,2]
[333105258,1721869846641,-1217.207332,0.00013972,2]
[333105260,1721869846651,-151.0,0.00013972,2]
[333105262,1721869846661,-649.64,0.00013972,2]
[333105264,1721869846671,-1195.48293348,0.00013972,2]
[333105380,1721869847847,-250.0,9.9e-05,2]
[333105382,1721869847857,-500.0,0.00013698,2]
[333105385,1721869847867,-500.0,0.00013698,2]
[333105386,1721869847877,-500.0,0.00013698,2]
[333105389,1721869847887,-500.0,0.00013698,2]
[333105391,1721869847897,-500.0,0.00013698,2]
[333105393,1721869847907,-500.0,0.00013698,2]
[333105395,1721869847918,-500.0,0.00013698,2]
[333105397,1721869847930,-500.0,0.00013698,2]
[333105399,1721869847940,-2220.0,0.00013972,2]
[333105402,1721869847962,-399.99999999,0.00013698,2]
[333105404,1721869847972,-251.00000001,0.00013972,2]
[333105423,1721869848322,-500.0,0.00013698,2]
[333105425,1721869848333,-230.14706651,0.00013972,2]
[333105427,1721869848342,-151.0,0.00013972,2]
[333105429,1721869848352,-1018.63,0.00013972,2]
[333105431,1721869848362,-151.0,0.00013972,2]
[333105433,1721869848372,-104.55024219,0.00013972,2]
[333105435,1721869848384,-46.44975781,0.00013972,2]
[333105437,1721869848395,-1455.21,0.00013972,2]
[333105439,1721869848404,-822.66,0.00013972,2]
[333105441,1721869848414,-500.0,0.00013972,2]
[333105443,1721869848423,-624.83,0.00013972,2]
[333105445,1721869848434,-635.75,0.00013972,2]
[333105447,1721869848445,-566.88,0.00013972,2]
[333105449,1721869848455,-500.0,0.00013972,2]
[333105451,1721869848465,-500.0,0.00013972,2]
[333105453,1721869848475,-500.0,0.00013972,2]
[333105455,1721869848485,-151.0,0.00013972,2]
[333105457,1721869848495,-500.0,0.00013972,2]
[333105459,1721869848506,-1993.85,0.00013972,2]
[333105461,1721869848516,-158.020548,0.00013972,2]
[333105463,1721869848525,-500.0,0.00013972,2]
[333105465,1721869848534,-500.0,0.00013972,2]
[333105467,1721869848543,-503.43694253,0.00013972,2]
[333105469,1721869848553,-764.19,0.00013972,2]
[333105471,1721869848565,-500.0,0.00013972,2]
[333105473,1721869848575,-500.0,0.00013972,2]
[333105475,1721869848584,-1670.6,0.00013972,2]
[333105477,1721869848594,-2497.06,0.00013972,2]
[333105479,1721869848604,-500.0,0.00013972,2]
[333105481,1721869848613,-711.97,0.00013972,2]
[333105483,1721869848622,-500.0,0.00013972,2]
[333105485,1721869848632,-2063.01,0.00013972,2]
[333105487,1721869848643,-1427.99,0.00013972,2]
[333105489,1721869848658,-1173.6,0.00013972,2]
[333105491,1721869848668,-2695.62,0.00013972,2]
[333105492,1721869848677,-500.0,0.00013972,2]
[333105494,1721869848686,-506.79763498,0.00013972,2]
[333105496,1721869848695,-2738.40039,0.00013972,2]
[333105498,1721869848705,-913.79,0.00013972,2]
[333105500,1721869848715,-2738.40039,0.00013972,2]
[333105502,1721869848725,-1548.21,0.00013972,2]
[333105504,1721869848736,-500.0,0.00013972,2]
[333105506,1721869848745,-500.0,0.00013972,2]
[333105508,1721869848761,-1301.44,0.00013972,2]
[333105510,1721869848771,-500.0,0.00013972,2]
[333105512,1721869848780,-10248.48,0.00013972,2]
[333105514,1721869848790,-500.0,0.00013972,2]
[333105516,1721869848802,-500.0,0.00013972,2]
[333105518,1721869848811,-500.0,0.00013972,2]
[333105520,1721869848823,-500.0,0.00013972,2]
[333105522,1721869848832,-719.76,0.00013972,2]
[333105524,1721869848842,-500.0,0.00013972,2]
[333105526,1721869848852,-500.0,0.00013972,2]
[333105528,1721869848862,-12546.53,0.00013972,2]
[333105530,1721869848873,-3621.12,0.00013972,2]
[333105532,1721869848883,-2053.7,0.00013972,2]
[333105534,1721869848894,-1576.27,0.00013972,2]
[333105536,1721869848903,-500.0,0.00013972,2]
[333105538,1721869848913,-282.88816925,0.00013972,2]
[333105540,1721869848927,-4171.39,0.00013972,2]
[333105542,1721869848936,-151.0,0.00013972,2]
[333105544,1721869848946,-500.0,0.00013972,2]
[333105545,1721869848955,-151.0,0.00013972,2]
[333105547,1721869848966,-500.0,0.00013972,2]
[333105549,1721869848975,-500.0,0.00013972,2]
[333105551,1721869848986,-500.0,0.00013972,2]
[333105553,1721869848995,-862.73,0.00013972,2]
[333105555,1721869849006,-5966.46,0.00013972,2]
[333105557,1721869849016,-500.0,0.00013972,2]
[333105559,1721869849026,-500.0,0.00013972,2]
[333105561,1721869849035,-1528.11,0.00013972,2]
[333105563,1721869849044,-500.0,0.00013972,2]
[333105565,1721869849054,-151.0,0.00013972,2]
[333105567,1721869849065,-150.112233,0.00014,2]
[333105568,1721869849075,-150.112233,0.00014,2]
[333105570,1721869849085,-150.112233,0.00014,2]
[333105572,1721869849094,-150.112233,0.00014,2]
[333105574,1721869849104,-620.58891264,0.00014008,2]
[333105576,1721869849113,-150.112233,0.000141,2]
[333105578,1721869849123,-150.112233,0.000141,2]
[333105579,1721869849133,-150.112233,0.000141,2]
[333105581,1721869849143,-150.112233,0.000141,2]
[333105583,1721869849153,-150.112233,0.000141,2]
[333105585,1721869849163,-599.0,0.000141,2]
[333105587,1721869849174,-524.2908252,0.00014103,2]
[333105589,1721869849186,-150.112233,0.000142,2]
[333105591,1721869849196,-150.112233,0.000142,2]
[333105593,1721869849206,-150.112233,0.000142,2]
[333105595,1721869849216,-226.705701,0.00014235,2]
[333105597,1721869849226,-226.705701,0.00014235,2]
[333105598,1721869849236,-151.0,0.00014236,2]
[333105599,1721869849246,-151.0,0.00014236,2]
[333105600,1721869849257,-187.319809,0.00014236,2]
[333105602,1721869849267,-151.0,0.00014236,2]
[333105603,1721869849277,-492.980999,0.00014236,2]
[333105605,1721869849287,-287.316152,0.00014236,2]
[333105607,1721869849297,-287.316152,0.00014236,2]
[333105609,1721869849307,-151.0,0.00014236,2]
[333105611,1721869849320,-462.719106,0.00014236,2]
[333105613,1721869849331,-462.719106,0.00014236,2]
[333105615,1721869849342,-151.0,0.00014236,2]
[333105617,1721869849352,-59191.927459,0.00014236,2]
[333105619,1721869849361,-39773.81681639,0.00014246,5]
[333105620,1721869849371,-499.536403,0.00014246,2]
[333105622,1721869849382,-499.536403,0.00014246,2]
[333105624,1721869849393,-151.0,0.00014246,2]
[333105626,1721869849403,-500.0,0.00014246,2]
[333105628,1721869849414,-500.0,0.00014246,2]
[333105630,1721869849424,-425.72585841,0.00014246,2]
[333105632,1721869849434,-500.0,0.00014246,2]
[333105633,1721869849444,-500.0,0.00014246,2]
[333105635,1721869849454,-500.0,0.00014246,2]
[333105637,1721869849464,-151.0,0.00014246,2]
[333105639,1721869849473,-151.0,0.00014246,2]
[333105641,1721869849483,-151.0,0.00014246,2]
[333105642,1721869849493,-500.0,0.00014246,2]
[333105644,1721869849503,-151.0,0.00014246,2]
[333105646,1721869849513,-500.0,0.00014246,2]
[333105648,1721869849524,-500.0,0.00014246,2]
[333105650,1721869849533,-500.0,0.00014246,2]
[333105652,1721869849545,-500.0,0.00014246,2]
[333105654,1721869849555,-500.0,0.00014246,2]
[333105656,1721869849570,-500.0,0.00014246,2]
[333105658,1721869849580,-500.0,0.00014246,2]
[333105660,1721869849590,-500.0,0.00014246,2]
[333105661,1721869849601,-492.980999,0.00014246,2]
[333105663,1721869849611,-492.980999,0.00014246,2]
[333105665,1721869849621,-500.0,0.00014246,2]
[333105667,1721869849630,-287.316152,0.00014246,2]
[333105669,1721869849640,-287.316152,0.00014246,2]
[333105671,1721869849650,-500.0,0.00014246,2]
[333105673,1721869849661,-287.316152,0.00014246,2]
[333105675,1721869849672,-287.316152,0.00014246,2]
[333105677,1721869849682,-500.0,0.00014246,2]
[333105679,1721869849692,-500.0,0.00014246,2]
[333105681,1721869849701,-500.0,0.00014246,2]
[333105683,1721869849711,-500.0,0.00014246,2]
[333105684,1721869849720,-951.06,0.00014246,2]
[333105686,1721869849731,-500.0,0.00014246,2]
[333105689,1721869849742,-500.0,0.00014246,2]
[333105691,1721869849754,-500.0,0.00014246,2]
[333105693,1721869849766,-500.0,0.00014246,2]
[333105695,1721869849776,-500.0,0.00014246,2]
[333105697,1721869849790,-500.0,0.00014246,2]
[333105699,1721869849799,-151.0,0.00014246,2]
[333105701,1721869849808,-151.0,0.00014246,2]
[333105703,1721869849823,-668.84,0.00014246,2]
[333105705,1721869849833,-1653.23,0.00014246,2]
[333105707,1721869849844,-1901.83,0.00014246,2]
[333105709,1721869849853,-1028.92,0.00014246,2]
[333105711,1721869849864,-157.718695,0.00014246,2]
[333105712,1721869849874,-500.0,0.00014246,2]
[333105714,1721869849885,-500.0,0.00014246,2]
[333105716,1721869849896,-593.52395673,0.00014246,2]
[333105718,1721869849906,-151.0,0.00014246,2]
[333105720,1721869849915,-151.0,0.00014246,2]
[333105722,1721869849925,-500.0,0.00014246,2]
[333105724,1721869849936,-500.0,0.00014246,2]
[333105726,1721869849948,-533.17,0.00014246,2]
[333105742,1721869850111,-500.0,0.00014246,2]
[333105743,1721869850122,-240.0,0.00014246,2]
[333105745,1721869850132,-1686.1,0.00014246,2]
[333105747,1721869850142,-880.07,0.00014246,2]
[333105749,1721869850152,-664.59,0.00014246,2]
[333105751,1721869850163,-213.91492781,0.00014246,2]
[333105752,1721869850172,-462.719106,0.00014246,2]
[333105753,1721869850183,-462.719106,0.00014246,2]
[333105754,1721869850193,-1160.68,0.00014246,2]
[333105755,1721869850203,-500.0,0.00014246,2]
[333105756,1721869850214,-462.719106,0.00014246,2]
[333105757,1721869850225,-462.719106,0.00014246,2]
[333105758,1721869850235,-500.0,0.00014246,2]
[333105759,1721869850245,-1372.06,0.00014246,2]
[333105760,1721869850255,-530.37939173,0.00014246,2]
[333105835,1721870847159,-300.0,9.892e-05,2]
[333105836,1721870847188,-300.0,9.892e-05,2]
[333105837,1721870847212,-3022.95226668,9.893e-05,2]
[333105839,1721870948189,-300.0,9.892e-05,2]
[333105840,1721870948217,-21877.04773332,9.893e-05,2]
[333105841,1721870948241,-200.0,9.9e-05,2]
[333105842,1721870948264,-941.11785543,9.999e-05,2]
[333105843,1721870948288,-201.27243595,9.999e-05,2]
[333105844,1721870948310,-259.19116163,9.999e-05,2]
[333105845,1721870948335,-661.05771016,9.999e-05,2]
[333105846,1721870948361,-288.20605053,9.999e-05,2]
[333105847,1721870948384,-968.2231781,9.999e-05,2]
[333105848,1721870948410,-889.77936757,9.999e-05,2]
[333105849,1721870948433,-493.6852174,9.999e-05,2]
[333105850,1721870948457,-279.04327671,9.999e-05,2]
[333105851,1721870948481,-287.45478261,0.0001,2]
[333105852,1721870948504,-162.521418,0.00010125,2]
[333105853,1721870948527,-162.521418,0.00010156,2]
[333105854,1721870948549,-162.521418,0.00010187,2]
[333105855,1721870948572,-162.521418,0.00010218,2]
[333105856,1721870948595,-162.521418,0.00010249,2]
[333105857,1721870948618,-162.521418,0.0001028,2]
[333105858,1721870948641,-162.521418,0.00010311,2]
[333105859,1721870948667,-162.521418,0.00010342,2]
[333105860,1721870948691,-162.521418,0.00010373,2]
[333105861,1721870948713,-162.521418,0.00010404,2]
[333105862,1721870948737,-162.521418,0.00010435,2]
[333105863,1721870948761,-162.521418,0.00010467,2]
[333105864,1721870948785,-162.521418,0.00010498,2]
[333105865,1721870948808,-162.521418,0.00010529,2]
[333105866,1721870948831,-162.521418,0.0001056,2]
[333105867,1721870948855,-162.521418,0.00010591,2]
[333105868,1721870948877,-162.521418,0.00010622,2]
[333105869,1721870948908,-162.521418,0.00010653,2]
[333105870,1721870948931,-420.0,0.00010881,2]
[333105871,1721870948956,-173.04,0.00010959,2]
[333105872,1721870948979,-309.4,0.00010959,2]
[333105873,1721870949001,-400.0,0.0001127,2]
[333105874,1721870949027,-300.0,0.00011969,2]
[333105875,1721870949050,-403.29212142,0.00011991,2]